bitfinex/quotes_ETHUSD_20240810
["timestamp","ask_amount","ask_price","bid_price","bid_amount"]
[1723250429988,3.85292,2595.5,2594.9,2.3657]
[1723250430401,3.85292,2595.5,2594.8,3.85376]
[1723250430402,4.238352,2595.4,2594.8,3.85385]
[1723250430611,3.85289,2595.5,2594.6,3.85404]
[1723250430916,3.85288,2595.5,2594.8,3.85373]
[1723250431127,6.28401,2595.8,2594.6,3.85411]
[1723250431328,3.85351,2595.1,2594.5,2.3657]
[1723250431527,3.85351,2595.1,2594.5,6.21998]
[1723250431736,3.8535,2595.1,2594.6,0.06075863]
[1723250432032,3.8535,2595.1,2594.4,3.85435]
[1723250432200,3.85318,2595.3,2594.8,3.85384]
[1723250432597,3.85322,2595.3,2594.6,3.85415]
[1723250432801,3.85327,2595.2,2594.9,0.05716313]
[1723250433115,3.628401,2595.7,2594.3,3.8546]
[1723250433116,3.85373,2594.9,2594.3,3.8546]
[1723250433315,3.85353,2595.1,2594.4,3.85443]
[1723250433633,3.85353,2595.1,2594.4,3.85434]
[1723250433827,3.85374,2594.9,2594.4,3.85434]
[1723250434030,3.8536,2595.0,2594.2,6.22033]
[1723250434522,3.8536,2595.0,2594.4,3.85443]
[1723250434731,3.628401,2595.7,2594.2,6.22033]
[1723250434732,3.85375,2594.9,2594.2,6.22033]
[1723250434890,3.85417,2594.6,2594.0,3.85496]
[1723250435093,4.624997,2594.6,2594.0,3.85496]
[1723250435292,3.85458,2594.4,2593.9,2.3657]
[1723250435932,2.4316,2595.1,2593.6,2.3657]
[1723250436134,3.85521,2593.9,2593.3,3.85607]
[1723250436574,3.85416,2594.6,2593.4,3.85581]
[1723250436835,3.0,2594.5,2593.4,3.85581]
[1723250437330,3.85498,2594.1,2593.5,3.93287667]
[1723250437533,7.71,2594.1,2593.4,3.85581]
[1723250437842,3.85524,2593.9,2593.2,6.22181]
[1723250438602,3.85535,2593.8,2593.2,10.07795]
[1723250438811,3.85621,2593.3,2592.7,2.3657]
[1723250439148,3.85624,2593.2,2592.4,3.85731]
[1723250439310,3.85639,2593.1,2592.5,3.85718]
[1723250439694,3.85693,2592.8,2592.6,0.05544533]
[1723250439896,3.85698,2592.7,2592.6,0.05544533]
[1723250440093,3.85693,2592.8,2592.1,3.85786]
[1723250440094,3.85713,2592.6,2592.1,3.85786]
[1723250440315,3.85713,2592.6,2592.0,3.85799]
[1723250440316,3.85693,2592.8,2592.0,3.85799]
[1723250440535,3.85717,2592.6,2592.0,3.85799]
[1723250440941,3.85717,2592.6,2591.9,2.4529]
[1723250441107,3.85737,2592.5,2591.9,6.31106]
[1723250441628,3.85782,2592.2,2591.6,6.31147]
[1723250441931,3.85791,2592.1,2591.4,3.85879]
[1723250442136,3.85791,2592.1,2591.3,2.4529]
[1723250442137,3.85819,2591.9,2591.3,2.4529]
[1723250442997,3.85819,2591.9,2591.2,3.8591]
[1723250442998,3.85849,2591.7,2591.0,3.8594]
[1723250443341,3.85849,2591.7,2591.1,3.85935]
[1723250443516,7.71708,2591.7,2591.1,3.85935]
[1723250443721,3.85887,2591.5,2590.9,2.4529]
[1723250443925,3.85921,2591.2,2590.7,3.85989]
[1723250444109,3.859,2591.4,2590.7,3.85986]
[1723250444294,3.85932,2591.2,2590.5,6.31308]
[1723250444618,3.85932,2591.2,2590.5,6.31304]
[1723250444827,3.85932,2591.2,2590.5,10.17316]
[1723250444999,3.85932,2591.2,2590.6,3.86003]
[1723250445332,3.85893,2591.4,2590.7,3.85995]
[1723250445633,3.85935,2591.2,2590.5,10.17315]
[1723250445836,3.85961,2591.0,2590.3,3.86049]
[1723250446199,3.85897,2591.4,2590.3,3.86055]
[1723250446394,3.8597,2590.9,2590.1,2.4529]
[1723250446629,3.85982,2590.8,2590.2,3.86069]
[1723250446835,3.85996,2590.7,2590.0,4.16094]
[1723250447230,6.17345,2591.1,2590.0,0.3]
[1723250447438,6.85863,2591.6,2590.0,0.3]
[1723250447439,3.86085,2590.1,2590.0,0.3]
[1723250447742,3.86056,2590.3,2590.0,0.3]
[1723250447929,3.8607,2590.2,2590.0,0.35392192]
[1723250448299,3.8607,2590.2,2590.0,0.3]
[1723250448835,3.8607,2590.2,2590.1,0.05392192]
[1723250449213,3.85992,2590.8,2590.1,0.05392192]
[1723250449417,0.385991,2590.8,2590.2,3.86057]
[1723250449724,3.85957,2591.0,2590.2,3.93577032]
[1723250449927,3.85924,2591.2,2590.4,3.86027]
[1723250450130,2.314,2591.3,2590.6,3.85999]
[1723250450309,2.314,2591.3,2590.5,0.05536865]
[1723250450513,6.17307,2591.3,2590.5,3.86011]
[1723250450845,3.85881,2591.5,2590.6,0.05536865]
[1723250450999,3.85848,2591.7,2590.9,3.85965]
[1723250451321,3.85848,2591.7,2591.0,3.8595]
[1723250451527,3.85848,2591.7,2591.0,0.05536865]
[1723250451528,0.617248,2591.7,2591.0,0.05536865]
[1723250451717,2.314,2591.8,2591.0,0.05536865]
[1723250451718,3.8589,2591.5,2591.0,0.05536865]
[1723250452039,3.85847,2591.7,2591.1,0.05536865]
[1723250452241,3.8582,2591.9,2591.2,3.85911]
[1723250452450,3.8582,2591.9,2591.0,3.85939]
[1723250452451,3.85842,2591.8,2591.0,3.85939]
[1723250452601,3.85852,2591.7,2591.3,0.05352303]
[1723250452801,3.85852,2591.7,2591.0,3.85939]
[1723250453002,3.85773,2592.2,2590.7,2.4529]
[1723250453003,3.85903,2591.4,2591.1,0.05352303]
[1723250453203,2.314,2591.6,2590.7,2.4529]
[1723250453204,3.85866,2591.6,2590.7,2.4529]
[1723250453510,3.85836,2591.8,2590.8,0.13071648]
[1723250453734,3.85862,2591.6,2590.9,3.85956]
[1723250453934,3.859,2591.4,2590.8,0.05352303]
[1723250454209,3.85859,2591.7,2591.1,3.85934]
[1723250454504,6.17161,2592.3,2591.5,3.85867]
[1723250454711,6.17161,2592.3,2591.5,3.85863]
[1723250454712,2.9916365,2592.3,2591.5,3.85863]
[1723250454910,3.858,2592.1,2591.6,0.05352303]
[1723250455142,3.85761,2592.3,2591.6,0.05352303]
[1723250455372,3.85735,2592.5,2591.7,3.85837]
[1723250455578,6.17108,2592.7,2592.0,3.858]
[1723250455878,3.85714,2592.6,2592.1,0.05483446]
[1723250456066,4.474248,2592.6,2592.1,0.05483446]
[1723250456229,0.617108,2592.6,2592.1,3.85787]
[1723250456438,6.17108,2592.7,2591.9,3.9351735]
[1723250456439,6.17108,2592.7,2592.2,0.05483446]
[1723250456667,3.85728,2592.5,2591.7,3.85841]
[1723250456833,3.85774,2592.2,2591.5,7.71734]
[1723250457032,3.85774,2592.2,2591.5,3.85864]
[1723250457266,3.85774,2592.2,2591.3,2.4529]
[1723250457589,3.85774,2592.2,2591.6,3.85854]
[1723250457735,3.85804,2592.0,2591.3,6.31191]
[1723250458034,3.85813,2592.0,2591.3,6.31192]
[1723250458231,3.85819,2591.9,2591.3,6.31192]
[1723250458446,3.85813,2592.0,2591.4,3.85878]
[1723250458673,3.85777,2592.2,2591.5,3.85862]
[1723250459561,2.876977,2592.1,2590.3,2.3452]
[1723250459750,3.0,2592.5,2591.4,3.85877]
[1723250459751,3.85783,2592.2,2591.4,3.85877]
[1723250460077,3.85783,2592.2,2591.6,3.85861]
[1723250460559,6.85747,2592.4,2591.2,3.85916]
[1723250460560,3.85815,2592.0,2591.2,3.85916]
[1723250460768,3.85814,2592.0,2591.3,3.85906]
[1723250460938,3.85814,2592.0,2591.4,3.85884]
[1723250461141,3.85752,2592.4,2591.8,3.85822]
[1723250461440,3.85775,2592.2,2591.6,3.85858]
[1723250461788,3.85827,2591.9,2591.4,19.56]
[1723250461953,3.85779,2592.2,2591.6,3.8585]
[1723250462139,7.96411,2592.4,2591.5,3.85865]
[1723250462335,5.4912,2592.5,2591.7,3.85842]
[1723250462336,2.4912,2592.5,2591.7,3.85842]
[1723250462544,0.4461205,2592.9,2592.3,3.85748]
[1723250462545,2.9373205,2592.9,2592.3,3.85748]
[1723250462889,2.9373205,2592.9,2591.8,6.20347]
[1723250462890,3.85684,2592.8,2592.2,3.8577]
[1723250463033,3.85684,2592.8,2592.2,3.85761]
[1723250463233,2.4912,2592.9,2591.4,10.06285]
[1723250463440,3.85779,2592.2,2591.1,2.3452]
[1723250463677,2.4912,2592.3,2591.5,3.85876]
[1723250463891,2.4912,2592.3,2591.1,6.20449]
[1723250464036,3.85814,2592.0,2591.2,3.85921]
[1723250464240,2.4912,2592.3,2590.7,2.3452]
[1723250464241,3.85789,2592.1,2591.4,3.85882]
[1723250464436,4.10688,2592.2,2591.5,3.85867]
[1723250464737,0.659808,2592.1,2591.0,3.85942]
[1723250464942,3.85856,2591.7,2591.1,3.85926]
[1723250465170,3.8581,2592.0,2591.3,3.85896]
[1723250465350,3.8581,2592.0,2591.2,3.8591]
[1723250465879,3.8581,2592.0,2591.4,3.85881]
[1723250466375,3.85834,2591.8,2591.2,3.85917]
[1723250466582,3.85806,2592.0,2591.5,3.85876]
[1723250467017,3.85744,2592.4,2591.8,3.85828]
[1723250467174,0.385744,2592.3,2591.8,3.85828]
[1723250467373,3.85744,2592.4,2591.7,3.85845]
[1723250467582,6.34841,2592.6,2591.8,3.85829]
[1723250467911,3.85745,2592.4,2591.9,3.85815]
[1723250468113,3.85745,2592.4,2591.7,3.85845]
[1723250468114,3.85773,2592.2,2591.7,3.85845]
[1723250468402,3.85773,2592.2,2591.6,3.8586]
[1723250468577,3.85773,2592.2,2591.5,3.85864]
[1723250469112,3.85773,2592.2,2591.6,3.85852]
[1723250469408,2.4912,2592.1,2591.0,2.3452]
[1723250469570,3.85832,2591.8,2591.7,0.04359838]
[1723250469875,2.4912,2592.1,2590.9,3.85961]
[1723250470077,3.85868,2591.6,2591.0,3.85947]
[1723250470277,3.85894,2591.4,2590.9,3.85961]
[1723250470484,3.85894,2591.4,2590.8,3.8598]
[1723250470689,3.85878,2591.5,2590.9,3.85966]
[1723250471081,3.85878,2591.5,2590.9,3.85955]
[1723250471302,3.85878,2591.5,2590.7,3.85988]
[1723250471603,3.85908,2591.3,2590.7,7.71972]
[1723250471807,3.85908,2591.3,2590.5,6.20536]
[1723250472005,3.85908,2591.3,2590.0,4.16099]
[1723250472006,3.85937,2591.1,2590.3,11.35049]
[1723250472303,3.85983,2590.8,2590.2,3.86061]
[1723250472607,3.86031,2590.5,2590.0,19.86]
[1723250472850,2.4912,2590.6,2590.0,19.86]
[1723250472851,6.35143,2590.6,2590.0,0.3]
[1723250472964,0.385908,2591.3,2590.3,3.86054]
[1723250472965,3.85945,2591.1,2590.3,3.86054]
[1723250473164,3.85937,2591.1,2590.5,7.72039]
[1723250473408,6.6890108,2591.2,2590.5,3.86015]
[1723250473610,0.32156988,2591.1,2590.4,3.8603]
[1723250473783,3.85882,2591.5,2591.0,3.85941]
[1723250473784,2.4912,2591.5,2591.0,3.85941]
[1723250473983,2.4912,2591.5,2590.8,3.85969]
[1723250473984,2.4912,2592.0,2590.9,0.07718246]
[1723250474227,0.1,2593.0,2590.2,2.3452]
[1723250474228,0.634915,2591.9,2590.7,0.3865]
[1723250474549,2.4912,2592.4,2591.8,3.85821]
[1723250474900,2.4912,2592.4,2591.6,7.71706]
[1723250475100,3.85758,2592.3,2591.7,3.85844]
[1723250475329,4.878191,2592.3,2591.7,3.85844]
[1723250475540,3.85827,2591.9,2591.1,3.85928]
[1723250475749,3.85788,2592.1,2591.3,7.718]
[1723250475907,3.85813,2592.0,2591.3,3.85896]
[1723250476246,3.85828,2591.9,2591.2,3.85921]
[1723250476835,3.85828,2591.9,2591.4,3.85889]
[1723250476836,0.385828,2591.9,2591.4,3.85889]
[1723250477007,4.244088,2591.9,2591.3,3.85904]
[1723250477440,0.385828,2591.9,2591.3,3.85904]
[1723250477643,0.385828,2591.9,2590.9,3.85961]
[1723250477644,3.85849,2591.7,2591.1,3.85925]
[1723250477852,0.385828,2591.9,2591.1,3.85925]
[1723250477853,3.85824,2591.9,2591.1,3.85925]
[1723250478139,2.4912,2592.2,2590.8,6.205]
[1723250478348,3.85911,2591.3,2590.6,7.72]
[1723250478513,3.85876,2591.5,2590.7,3.85988]
[1723250479026,6.34991,2591.6,2591.0,3.8594]
[1723250479228,2.4912,2591.6,2591.1,3.85844359]
[1723250479402,2.4912,2591.6,2591.0,3.8594]
[1723250479606,3.85891,2591.5,2590.8,3.85974]
[1723250479809,3.126175,2591.6,2590.9,3.85952]
[1723250479810,6.34984,2591.6,2590.9,3.85952]
[1723250480037,3.512039,2591.6,2590.9,3.85964]
[1723250480241,3.85891,2591.5,2590.8,3.85981]
[1723250480458,3.512039,2591.6,2590.6,3.85998]
[1723250480759,3.859,2591.4,2590.6,3.85998]
[1723250480916,3.85979,2590.9,2590.2,3.86063]
[1723250481105,3.85983,2590.8,2590.2,3.86063]
[1723250481307,3.85977,2590.9,2590.3,3.86055]
[1723250481513,4.245749,2590.9,2590.3,3.86055]
[1723250481985,4.245749,2590.9,2590.2,3.86063]
[1723250482191,3.86001,2590.7,2590.0,0.3]
[1723250482880,3.86001,2590.7,2590.1,3.86074]
[1723250483074,4.6705789,2590.7,2590.1,3.86074]
[1723250483266,7.71891,2591.1,2590.5,3.86025]
[1723250483495,2.4786,2591.4,2590.6,3.93721806]
[1723250483654,3.85937,2591.1,2590.6,3.93718806]
[1723250483853,4.792905,2591.3,2590.6,7.79720806]
[1723250484074,4.792905,2591.3,2590.7,3.85983]
[1723250484279,4.792905,2591.3,2590.8,3.85981]
[1723250484779,3.85923,2591.2,2590.9,0.0386765]
[1723250485003,3.85944,2591.1,2590.9,0.0386765]
[1723250485307,0.7271505,2591.2,2591.0,0.0386765]
[1723250485490,2.4786,2591.4,2591.0,0.0386765]
[1723250485693,3.85722,2592.6,2590.9,3.85957]
[1723250485694,3.8588,2591.5,2590.9,3.85957]
[1723250485894,3.85861,2591.7,2591.0,0.07718284]
[1723250486093,3.85826,2591.9,2591.3,3.85894]
[1723250486297,4.629879,2591.9,2591.3,3.85894]
[1723250486594,2.4786,2592.2,2591.3,3.85894]
[1723250486595,6.33641,2592.2,2591.6,3.85853]
[1723250486804,8.57468552,2592.7,2591.7,0.07716062]
[1723250486805,6.33578,2592.6,2591.7,0.07716062]
[1723250486965,6.33578,2592.6,2591.8,3.85825]
[1723250487171,3.85799,2592.1,2591.8,0.03885372]
[1723250487405,3.85817,2591.9,2591.8,0.03885372]
[1723250487603,0.385799,2592.0,2591.2,3.85913]
[1723250487604,3.85832,2591.8,2591.2,3.85913]
[1723250487985,3.85832,2591.8,2591.3,0.03885372]
[1723250488322,3.85747,2592.4,2590.8,3.85971]
[1723250488323,3.85871,2591.6,2590.8,3.85971]
[1723250488483,7.71744,2591.6,2591.4,0.03885372]
[1723250488669,3.85916,2591.3,2590.6,3.8601]
[1723250488869,0.771744,2591.6,2590.5,2.3054]
[1723250488870,3.85885,2591.5,2590.9,3.85963]
[1723250489410,3.85901,2591.4,2590.8,3.85971]
[1723250489623,3.85912,2591.3,2590.6,3.85999]
[1723250489769,0.771744,2591.6,2590.5,2.3054]
[1723250489770,3.85903,2591.4,2590.5,2.3054]
[1723250490106,4.630434,2591.6,2590.9,3.85957]
[1723250490313,4.630434,2591.6,2591.0,3.85941]
[1723250490469,2.4786,2591.9,2591.2,3.85911]
[1723250490818,3.85766,2592.3,2591.7,3.85835]
[1723250490978,3.85797,2592.1,2591.4,2.3054]
[1723250491316,3.85723,2592.6,2591.8,3.85832]
[1723250491496,3.85723,2592.6,2592.0,3.85801]
[1723250491820,7.71447,2592.6,2592.0,3.85801]
[1723250492000,0.771447,2592.5,2592.0,3.85801]
[1723250492209,3.85684,2592.8,2592.2,3.85771]
[1723250492371,3.85684,2592.8,2592.2,3.85762]
[1723250492574,3.85684,2592.8,2592.3,3.85757]
[1723250492905,3.85684,2592.8,2592.2,3.85768]
[1723250493135,2.4786,2592.9,2592.1,7.71553]
[1723250493337,0.633516,2592.8,2592.2,0.07714578]
[1723250493545,1.545083,2594.9,2592.5,3.85724]
[1723250493546,3.8563,2593.2,2592.5,3.85724]
[1723250493711,7.71264,2593.2,2592.6,3.85708]
[1723250493914,3.8563,2593.2,2592.6,3.85708]
[1723250494646,3.85639,2593.1,2592.5,3.85724]
[1723250494829,4.875519,2593.1,2592.5,3.85724]
[1723250495142,4.875519,2593.1,2591.9,3.85813]
[1723250495143,3.857,2592.7,2591.6,7.8194]
[1723250495351,3.85673,2592.9,2592.2,3.85762]
[1723250495499,3.85673,2592.9,2592.2,3.8576]
[1723250495910,6.33473,2593.3,2592.0,3.85793]
[1723250496149,3.85707,2592.7,2592.1,3.85781]
[1723250496436,4.628452,2592.7,2592.1,3.85781]
[1723250496608,4.628452,2592.7,2592.2,3.8577]
[1723250496810,4.628452,2592.7,2592.0,3.85793]
[1723250497022,4.628452,2592.7,2592.0,3.85792]
[1723250497198,0.771382,2592.7,2591.7,3.85838]
[1723250497399,3.85663,2593.0,2592.4,3.85739]
[1723250497623,3.85647,2593.1,2592.4,3.85732]
[1723250497821,3.85647,2593.1,2591.6,7.8194]
[1723250497822,3.85647,2593.1,2592.5,3.85725]
[1723250498019,3.85629,2593.2,2592.6,3.85702]
[1723250498228,3.85617,2593.3,2592.5,3.85725]
[1723250498229,3.8564,2593.1,2592.5,3.85725]
[1723250498543,2.4786,2593.6,2592.9,3.85662]
[1723250498544,6.33438,2593.6,2592.9,3.85662]
[1723250498753,3.24396375,2593.6,2593.1,3.85637]
[1723250498917,7.09971375,2593.6,2593.0,0.07712314]
[1723250499103,3.24396375,2593.6,2593.1,3.85638]
[1723250499450,3.24396375,2593.6,2593.0,0.07712314]
[1723250499616,4.62110375,2593.6,2593.0,0.07712314]
[1723250499944,0.76536375,2593.6,2593.1,3.85637]
[1723250500102,0.76536375,2593.6,2593.0,0.07712314]
[1723250500308,4.31800038,2593.5,2593.0,0.07712314]
[1723250500555,4.31800038,2593.5,2592.9,3.85656]
[1723250500757,3.85602,2593.4,2592.7,3.85687]
[1723250500967,2.3617,2593.9,2592.8,0.0771263]
[1723250501168,3.85497,2594.1,2593.4,3.85588]
[1723250501334,3.85497,2594.1,2593.3,3.85605]
[1723250501335,3.85497,2594.1,2593.6,3.85563]
[1723250501533,0.57834804,2594.0,2593.5,0.02625651]
[1723250501731,0.57834804,2594.0,2593.5,3.88194651]
[1723250501926,0.57834804,2594.0,2593.7,3.85539]
[1723250502122,2.3617,2594.2,2593.7,3.85539]
[1723250502424,6.21608,2594.5,2593.7,3.85539]
[1723250502637,2.3617,2594.5,2593.7,3.85539]
[1723250502867,2.3617,2594.5,2593.8,3.8552]
[1723250502868,0.23617,2594.4,2593.8,3.8552]
[1723250503171,6.2155,2594.9,2594.2,3.85466]
[1723250503328,6.2155,2594.9,2594.3,0.07708421]
[1723250503525,6.2155,2594.9,2594.3,3.85459]
[1723250503727,10.06933,2594.9,2594.2,3.85465]
[1723250503963,10.06933,2594.9,2594.3,0.07708256]
[1723250503964,4.47644731,2594.8,2594.3,0.07708256]
[1723250504161,0.62256731,2594.8,2594.3,3.93164256]
[1723250504473,2.3617,2594.9,2594.3,3.85456]
[1723250504642,6.21553,2594.9,2594.3,3.85456]
[1723250504846,6.21553,2594.9,2594.3,3.93164254]
[1723250505441,6.21553,2594.9,2594.2,3.85471]
[1723250505769,3.85403,2594.7,2594.0,3.85494]
[1723250506065,0.62257031,2594.8,2593.6,3.8556]
[1723250506225,3.85421,2594.6,2593.5,19.56]
[1723250506427,2.3617,2594.2,2593.6,3.85561]
[1723250506634,3.85468,2594.3,2593.7,3.85538]
[1723250506861,3.85468,2594.3,2593.6,3.85551]
[1723250507025,4.861757,2594.3,2593.7,3.8554]
[1723250507426,4.861757,2594.3,2593.6,3.85551]
[1723250507724,1.007077,2594.3,2593.3,2.3016]
[1723250508035,3.85529,2593.9,2593.1,3.85636]
[1723250508236,3.85552,2593.7,2592.9,3.85659]
[1723250508442,2.3617,2593.9,2593.4,3.85581]
[1723250508653,0.23617,2593.8,2593.4,3.85581]
[1723250509028,0.23617,2593.8,2593.2,3.85614]
[1723250509465,3.85559,2593.7,2593.1,3.85638]
[1723250509776,3.85559,2593.7,2593.0,3.85644]
[1723250509928,4.886466,2593.7,2593.0,3.85641]
[1723250510123,6.21696,2593.9,2593.3,3.85608]
[1723250510661,6.21696,2593.9,2593.2,3.85614]
[1723250510859,3.85546,2593.8,2593.2,3.85614]
[1723250511068,3.85573,2593.6,2592.8,3.85681]
[1723250511234,0.771112,2593.6,2593.1,3.85637]
[1723250511565,4.626782,2593.6,2593.0,3.85643]
[1723250511885,4.626782,2593.6,2593.0,3.8564]
[1723250512162,0.771112,2593.6,2593.1,3.85638]
[1723250512368,3.85551,2593.7,2593.1,3.85638]
[1723250512865,3.85551,2593.7,2593.0,3.8564]
[1723250513252,3.85551,2593.7,2593.2,3.85623]
[1723250514572,3.85551,2593.7,2593.0,3.85641]
[1723250514734,3.85573,2593.6,2593.0,3.85641]
[1723250514936,3.85548,2593.8,2593.0,3.85653]
[1723250515135,3.85506,2594.0,2593.4,3.85592]
[1723250515434,3.85513,2594.0,2593.4,3.85582]
[1723250515648,3.85522,2593.9,2593.4,3.85582]
[1723250515845,3.85513,2594.0,2593.4,7.71167]
[1723250516054,3.85483,2594.2,2593.4,7.71167]
[1723250516055,7.70968,2594.2,2593.6,3.85556]
[1723250516261,3.85483,2594.2,2593.6,3.85555]
[1723250516542,1.307105,2594.2,2593.4,3.85586]
[1723250516743,1.307105,2594.2,2593.2,19.56]
[1723250516744,3.85549,2593.7,2593.2,23.41614]
[1723250517053,6.21633,2594.3,2593.2,23.4162]
[1723250517054,3.85543,2593.8,2593.2,23.4162]
[1723250517258,3.8555,2593.7,2593.2,23.4162]
[1723250517454,3.85543,2593.8,2593.2,19.56]
[1723250517660,3.85543,2593.8,2593.2,23.41614]
[1723250517869,3.85573,2593.6,2593.2,19.56]
[1723250518194,0.385543,2593.8,2592.6,23.41704]
[1723250518195,3.85625,2593.2,2592.6,23.41704]
[1723250518374,3.85604,2593.4,2592.6,23.41703]
[1723250518548,3.85604,2593.4,2592.8,3.85681]
[1723250518861,2.3617,2593.7,2592.8,3.85681]
[1723250519062,3.85612,2593.3,2592.8,3.85681]
[1723250519892,3.85591,2593.5,2592.8,3.85673]
[1723250520045,2.3617,2593.7,2592.6,19.56]
[1723250520240,3.85574,2593.6,2593.0,3.85651]
[1723250520485,7.71148,2593.6,2593.0,3.85651]
[1723250521056,3.85573,2593.6,2593.0,3.85652]
[1723250521388,7.71033,2594.0,2593.4,3.85585]
[1723250521545,5.160793,2594.0,2593.4,3.85585]
[1723250521747,3.85528,2593.9,2593.3,3.85602]
[1723250522047,5.160793,2594.0,2593.1,19.56]
[1723250522048,7.71079,2593.8,2593.1,23.41625]
[1723250522267,3.85535,2593.8,2593.1,19.56]
[1723250522460,3.8557,2593.6,2593.1,19.56]
[1723250522768,3.85544,2593.8,2593.2,3.85617]
[1723250523370,1.305633,2594.0,2593.1,19.56]
[1723250523549,3.85577,2593.6,2593.1,23.41636]
[1723250523750,3.85595,2593.4,2593.1,19.56]
[1723250523983,3.85595,2593.4,2592.9,3.85667]
[1723250524188,3.85595,2593.4,2592.8,19.56]
[1723250524189,6.20195,2593.4,2592.8,19.56]
[1723250524360,3.85655,2593.0,2592.8,19.56]
[1723250524559,3.85655,2593.0,2592.4,23.41733]
[1723250524766,3.85631,2593.2,2592.4,3.85733]
[1723250525090,3.85544,2593.8,2593.2,3.85614]
[1723250525289,3.85544,2593.8,2593.2,7.71227]
[1723250525449,3.85544,2593.8,2593.2,3.85613]
[1723250525645,2.346,2594.1,2593.0,3.85646]
[1723250525874,3.85536,2593.8,2592.8,19.56]
[1723250526211,9.20159,2593.7,2592.9,0.07713141]
[1723250526386,3.85533,2593.9,2592.9,2.4604]
[1723250526551,6.85538,2593.8,2593.2,3.85617]
[1723250527089,3.85538,2593.8,2593.1,3.85628]
[1723250527279,3.85544,2593.8,2593.2,3.85619]
[1723250527985,3.8555,2593.7,2593.2,3.85623]
[1723250528185,3.8555,2593.7,2593.2,3.93334414]
[1723250528384,3.8555,2593.7,2593.2,3.85615]
[1723250528891,3.85475,2594.2,2593.6,3.85564]
[1723250529089,3.85475,2594.2,2593.6,7.71119]
[1723250529299,3.85468,2594.3,2593.7,3.91316348]
[1723250529593,3.85468,2594.3,2593.7,3.8554]
[1723250530150,2.346,2594.4,2593.5,2.4604]
[1723250530492,3.8542,2594.6,2593.5,2.4604]
[1723250530692,7.70789,2594.8,2594.1,3.85481]
[1723250530893,2.346,2594.9,2594.4,3.85443]
[1723250531104,0.619962,2594.9,2594.1,2.4604]
[1723250531392,0.619962,2594.9,2593.8,2.4604]
[1723250531591,3.85498,2594.1,2593.5,3.85571]
[1723250531774,3.85476,2594.2,2593.5,3.85571]
[1723250532152,3.85435,2594.5,2593.8,3.85534]
[1723250532349,6.19991,2594.8,2593.7,3.85539]
[1723250532564,3.85469,2594.3,2593.7,3.85549]
[1723250532797,3.85469,2594.3,2593.5,7.71138]
[1723250533011,3.85469,2594.3,2593.5,3.85567]
[1723250533012,3.85494,2594.1,2593.5,3.85567]
[1723250533295,3.85494,2594.1,2593.4,2.4604]
[1723250533456,3.85494,2594.1,2593.3,3.85607]
[1723250533654,3.85507,2594.0,2593.4,3.85579]
[1723250533847,3.85494,2594.1,2593.4,3.85593]
[1723250534054,3.85494,2594.1,2593.3,3.85607]
[1723250534055,3.85538,2593.8,2593.1,3.85631]
[1723250534288,3.85557,2593.7,2593.1,3.85628]
[1723250534866,3.85579,2593.5,2593.0,3.85652]
[1723250535192,3.85566,2593.6,2593.1,3.85637]
[1723250535691,3.85566,2593.6,2593.0,3.85652]
[1723250536258,3.8558,2593.5,2592.9,3.85657]
[1723250536499,7.71143,2593.6,2593.0,3.8565]
[1723250536689,3.85566,2593.6,2592.9,3.85657]
[1723250537061,3.85566,2593.6,2593.0,3.85651]
[1723250537696,2.731566,2593.6,2592.7,19.56]
[1723250537880,3.85647,2593.1,2592.7,19.56]
[1723250538101,3.85655,2593.0,2592.5,7.49]
[1723250538775,7.71319,2593.0,2592.5,7.49]
[1723250539001,3.85644,2593.1,2592.5,11.34723]
[1723250539191,3.85644,2593.1,2592.6,3.85712]
[1723250539700,3.85644,2593.1,2592.5,7.49]
[1723250539902,3.85655,2593.0,2592.5,7.49]
[1723250540103,3.85644,2593.1,2592.5,7.49]
[1723250540104,3.85644,2593.1,2592.5,11.34718]
[1723250540873,3.85657,2593.0,2592.5,11.34718]
[1723250541081,3.85639,2593.1,2592.6,3.85712]
[1723250541391,3.85639,2593.1,2592.5,11.34716]
[1723250542278,3.85639,2593.1,2592.5,3.85716]
[1723250542479,3.85629,2593.2,2592.5,3.85716]
[1723250542780,3.85629,2593.2,2592.6,3.85705]
[1723250543177,3.8564,2593.1,2592.6,3.85705]
[1723250543376,3.8564,2593.1,2592.4,19.56]
[1723250543377,3.85669,2592.9,2592.4,19.56]
[1723250543729,3.85669,2592.9,2592.3,19.56]
[1723250543730,3.85692,2592.8,2592.3,19.56]
[1723250544388,7.71415,2592.7,2592.2,19.56]
[1723250544716,6.324,2593.0,2592.2,19.56]
[1723250544879,3.85738,2592.5,2592.2,19.56]
[1723250545419,3.85737,2592.5,2592.2,19.56]
[1723250545621,7.71479,2592.5,2592.2,19.56]
[1723250545824,3.85753,2592.4,2592.2,19.56]
[1723250546324,3.85731,2592.5,2592.2,19.56]
[1723250547026,4.243091,2592.5,2591.6,3.85853]
[1723250547187,3.85773,2592.2,2591.6,3.85853]
[1723250547390,3.85773,2592.2,2591.6,3.85852]
[1723250547589,3.85766,2592.3,2591.5,7.49]
[1723250548342,6.32491,2592.4,2591.4,2.4185]
[1723250548623,3.85864,2591.6,2591.0,10.1373]
[1723250548830,3.85864,2591.6,2591.0,6.27788]
[1723250549936,3.8587,2591.6,2591.0,6.27788]
[1723250550113,3.85789,2592.1,2591.5,3.85864]